Workbook

Sheet Arps-StudyCase1
A3: F | B3: =1/I17 -> 1.14466083 | C3: Rfmax | D3: =1/B3 -> 0.8736212283
I4: RESULTS
I5: Study case 1 - Base case
A6: RF | B6: b=0 | C6: 0.25 | D6: 0.5 | E6: 0.75 | F6: 1 | I6: RF | J6: qmax_n
A7: 0 | B7: =1-$B$3*A7 -> 1 | C7: =(1-$B$3*(1-C$6)*$A7)^(1/(1-C$6)) -> 1 | D7: =(1-$B$3*(1-D$6)*$A7)^(1/(1-D$6)) -> 1 | E7: 1 | F7: =EXP(-$B$3*A7) -> 1 | I7: [-] | J7: [-]
A8: 0.05 | B8: =1-$B$3*A8 -> 0.9427669585 | C8: =(1-$B$3*(1-C$6)*$A8)^(1/(1-C$6)) -> 0.9431803883 | D8: 0.9435858638 | E8: 0.9439836412 | F8: =EXP(-$B$3*A8) -> 0.9443739654 | I8: 0 | J8: 1
A9: 0.1 | B9: 0.885533917 | C9: =(1-$B$3*(1-C$6)*$A9)^(1/(1-C$6)) -> 0.8872041449 | D9: 0.8888095381 | E9: 0.8903542823 | F9: 0.8918421866 | I9: 0.07817145824 | J9: 0.901550247
A10: 0.15 | B10: 0.8283008756 | C10: 0.8320974835 | D10: 0.8356710229 | E10: 0.8390431295 | F10: 0.8422325422 | I10: 0.1608627328 | J10: 0.8020256603
A11: 0.2 | B11: 0.7710678341 | C11: 0.7778887558 | D11: 0.7841703182 | E11: 0.789982395 | F11: 0.7953824857 | I11: 0.2478113781 | J11: 0.7014717249
A12: 0.25 | B12: 0.7138347926 | C12: 0.7246087442 | D12: 0.7343074241 | E12: 0.7431052967 | F12: 0.7511385121 | I12: 0.3385085201 | J12: 0.5999235584
A13: 0.3 | B13: 0.6566017511 | C13: 0.672291014 | D13: 0.6860823405 | E13: 0.6983460585 | F13: 0.7093556552 | I13: 0.4321935713 | J13: 0.4974390801
A14: 0.35 | B14: 0.5993687096 | C14: 0.6209723392 | D14: 0.6394950673 | E14: 0.6556399104 | F14: 0.669897013 | I14: 0.5278958601 | J14: 0.3939702726
A15: 0.4 | B15: 0.5421356682 | C15: 0.5706932233 | D15: 0.5945456048 | E15: 0.614923088 | F15: 0.6326332986 | I15: 0.6245218518 | J15: 0.2894001777
A16: 0.45 | B16: 0.4849026267 | C16: 0.5214985444 | D16: 0.5512339527 | E16: 0.576132833 | F16: 0.5974424168 | I16: 0.7209674037 | J16: 0.1831863778
A17: 0.5 | B17: 0.4276695852 | C17: 0.4734383646 | D17: 0.5095601111 | E17: 0.5392073931 | F17: 0.5642090643 | I17: 0.8736212283 | J17: 0
A18: 0.55 | B18: 0.3704365437 | C18: 0.4265689599 | D18: 0.4695240801 | E18: 0.5040860215 | F18: 0.5328243514
A19: 0.6 | B19: 0.3132035022 | C19: 0.3809541557 | D19: 0.4311258596 | E19: 0.4707089779 | F19: 0.5031854456
A20: 0.65 | B20: 0.2559704608 | C20: 0.3366670918 | D20: 0.3943654496 | E20: 0.4390175273 | F20: 0.4751952346
A21: 0.7 | B21: 0.1987374193 | C21: 0.2937926097 | D21: 0.3592428501 | E21: 0.4089539412 | F21: 0.448762008
A22: 0.75 | B22: 0.1415043778 | C22: 0.2524305741 | D22: 0.3257580611 | E22: 0.3804614964 | F22: 0.423799157
A23: 0.8 | B23: 0.08427133631 | C23: 0.212700648 | D23: 0.2939110827 | E23: 0.3534844761 | F23: 0.4002248905
A24: 0.85 | B24: 0.02703829483 | C24: 0.1747494458 | D24: 0.2637019148 | E24: 0.3279681692 | F24: 0.3779619669
A25: 0.9 | B25: -0.03019474665 | C25: 0.1387618176 | D25: 0.2351305574 | E25: 0.3038588706 | F25: 0.3569374414
A26: 0.95 | B26: -0.08742778813 | C26: 0.1049798902 | D26: 0.2081970105 | E26: 0.2811038809 | F26: 0.337082427
A27: 1 | B27: -0.1446608296 | C27: 0.073738308 | D27: 0.1829012741 | E27: 0.2596515068 | F27: 0.3183318682

Sheet StudyCase2-base case
A1: Case: | B1: base case
A2: N | B2: 55 | C2: [MSm3]
K3: qmaxw [Sm3/d] | L3: =MAX(E6:E690) -> 18904.5 | M3: qgmax [1000 sm3/d] | N3: =MAX(C6:C690) -> 2984.73
A4: Average Oil Rate | B4: Cum Oil Production | C4: Average Gas Rate | D4: Cum Gas Production | E4: Average Water Rate | F4: Cum Water Production | G4: Average Liquid Rate | H4: Average Gaslift Rate | I4: Reservoir Pressure | J4: RF | K4: qomax_n | L4: qwmax_n | M4: qgmax_n | N4: GOR | O4: WC
A5: sm3/d | B5: M sm3 | C5: 1000 sm3/d | D5: M sm3 | E5: sm3/d | F5: M sm3 | G5: sm3/d | H5: 1000 sm3/d | I5: bara
A6: 19897.2 | B6: 0 | C6: 2984.73 | D6: 0 | E6: 0 | F6: 0 | G6: 19897.2 | H6: 99.6948 | I6: 280 | J6: =B6/$B$2 -> 0 | K6: =A6/$A$6 -> 1 | L6: =E6/$L$3 -> 0 | M6: =C6/$N$3 -> 1 | N6: =C6*1000/A6 -> 150.0075387 | O6: =E6/(E6+A6) -> 0
A7: 19818.3 | B7: 0.616863 | C7: 2972.89 | D7: 92.5267 | E7: 78.9768 | F7: 0 | G7: 19897.3 | H7: 99.6672 | I7: 280 | J7: 0.01121569091 | K7: =A7/$A$6 -> 0.9960346179 | L7: =E7/$L$3 -> 0.004177671983 | M7: =C7/$N$3 -> 0.996033142 | N7: =C7*1000/A7 -> 150.0073165 | O7: =E7/(E7+A7) -> 0.003969226583
A8: 19687.4 | B8: 1.17182 | C8: 2953.25 | D8: 175.768 | E8: 210.25 | F8: 0.00221153 | G8: 19897.6 | H8: 99.6092 | I8: 280 | J8: 0.02130581818 | K8: 0.9894558028 | L8: 0.0111216906 | M8: 0.9894529823 | N8: 150.0071111 | O8: 0.01056657444
A9: 19497.2 | B9: 1.78218 | C9: 2924.72 | D9: 267.319 | E9: 400.826 | F9: 0.00872979 | G9: 19898 | H9: 99.5415 | I9: 280 | J9: 0.03240327273 | K9: 0.9798966689 | L9: 0.02120267661 | M9: 0.9798943288 | N9: 150.0071805 | O9: 0.02014400825
A10: 19276.8 | B10: 2.36714 | C10: 2891.66 | D10: 355.06 | E10: 622.219 | F10: 0.0207555 | G10: 19899 | H10: 99.4629 | I10: 280 | J10: 0.04303890909 | K10: 0.9688197334 | L10: 0.03291380359 | M10: 0.96881795 | N10: 150.0072626 | O10: 0.03126882788
A11: 19017.3 | B11: 2.96477 | C11: 2852.73 | D11: 444.702 | E11: 883.4 | F11: 0.0400459 | G11: 19900.7 | H11: 99.3675 | I11: 280 | J11: 0.05390490909 | K11: 0.9557776974 | L11: 0.04672961464 | M11: 0.9557748942 | N11: 150.0070988 | O11: 0.04439039833
A12: 18687.6 | B12: 3.53533 | C12: 2803.28 | D12: 530.283 | E12: 1159.7 | F12: 0.06655 | G12: 19847.3 | H12: 196.258 | I12: 280 | J12: 0.06427872727 | K12: 0.9392075267 | L12: 0.06134518236 | M12: 0.9392072315 | N12: 150.0074916 | O12: 0.05843112161
A13: 18380.7 | B13: 4.11469 | C13: 2757.24 | D13: 617.185 | E13: 1470.64 | F13: 0.102503 | G13: 19851.4 | H13: 196.105 | I13: 280 | J13: 0.07481254545 | K13: 0.9237832459 | L13: 0.07779311804 | M13: 0.9237820506 | N13: 150.0073447 | O13: 0.07408265638
A14: 18054.9 | B14: 4.68454 | C14: 2708.36 | D14: 702.66 | E14: 1801.93 | F14: 0.148097 | G14: 19856.8 | H14: 195.958 | I14: 280 | J14: 0.08517345455 | K14: 0.9074090827 | L14: 0.09531751699 | M14: 0.9074053599 | N14: 150.0069233 | O14: 0.090746106
A15: 17724.2 | B15: 5.22623 | C15: 2658.76 | D15: 783.911 | E15: 2138.56 | F15: 0.202159 | G15: 19862.8 | H15: 197.303 | I15: 280 | J15: 0.09502236364 | K15: 0.8907886537 | L15: 0.1131243884 | M15: 0.8907874414 | N15: 150.0073346 | O15: 0.1076668096
A16: 17364.6 | B16: 5.77572 | C16: 2604.81 | D16: 866.332 | E16: 2499.37 | F16: 0.26846 | G16: 19863.9 | H16: 197.091 | I16: 280 | J16: 0.1050130909 | K16: 0.872715759 | L16: 0.1322103203 | M16: 0.8727121046 | N16: 150.0069106 | O16: 0.1258242939
A17: 17006.1 | B17: 6.2967 | C17: 2551.04 | D17: 944.477 | E17: 2858.33 | F17: 0.343447 | G17: 19864.4 | H17: 196.869 | I17: 280 | J17: 0.1144854545 | K17: 0.8546981485 | L17: 0.1511983919 | M17: 0.8546970748 | N17: 150.0073503 | O17: 0.143891871
A18: 16628.9 | B18: 6.82393 | C18: 2494.45 | D18: 1023.56 | E18: 3237.14 | F18: 0.432062 | G18: 19866 | H18: 196.625 | I18: 280 | J18: 0.1240714545 | K18: 0.8357407072 | L18: 0.1712364781 | M18: 0.8357372359 | N18: 150.0069157 | O18: 0.1629484286
A19: 16247.4 | B19: 7.33947 | C19: 2437.23 | D19: 1100.89 | E19: 3621.42 | F19: 0.532422 | G19: 19868.8 | H19: 196.385 | I19: 280 | J19: 0.1334449091 | K19: 0.8165671552 | L19: 0.1915639134 | M19: 0.8165663226 | N19: 150.0073858 | O19: 0.1822664859
A20: 15888.9 | B20: 7.81068 | C20: 2383.46 | D20: 1171.57 | E20: 3983.63 | F20: 0.637451 | G20: 19872.6 | H20: 196.156 | I20: 280 | J20: 0.1420123636 | K20: 0.7985495447 | L20: 0.2107239017 | M20: 0.7985512927 | N20: 150.0078671 | O20: 0.2004591262
A21: 15505.4 | B21: 8.30327 | C21: 2325.92 | D21: 1245.45 | E21: 4372.44 | F21: 0.760954 | G21: 19877.8 | H21: 195.909 | I21: 280 | J21: 0.1509685455 | K21: 0.7792754759 | L21: 0.2312909625 | M21: 0.7792731671 | N21: 150.0070943 | O21: 0.2199655496
A22: 15126.4 | B22: 8.76847 | C22: 2269.08 | D22: 1315.23 | E22: 4745.3 | F22: 0.892137 | G22: 19871.7 | H22: 195.602 | I22: 280 | J22: 0.1594267273 | K22: 0.7602275697 | L22: 0.2510143088 | M22: 0.7602295685 | N22: 150.0079331 | O22: 0.238796882
A23: 14737.1 | B23: 9.23743 | C23: 2210.67 | D23: 1385.57 | E23: 5127.7 | F23: 1.03925 | G23: 19864.8 | H23: 195.275 | I23: 280 | J23: 0.1679532727 | K23: 0.7406620027 | L23: 0.2712422968 | M23: 0.7406599592 | N23: 150.0071249 | O23: 0.2581299585
A24: 14365.3 | B24: 9.67958 | C24: 2154.9 | D24: 1451.89 | E24: 5493.77 | F24: 1.1931 | G24: 19859.1 | H24: 194.961 | I24: 280 | J24: 0.1759923636 | K24: 0.7219759564 | L24: 0.2906064694 | M24: 0.721974852 | N24: 150.0073093 | O24: 0.2766378285
A25: 13986.8 | B25: 10.1249 | C25: 2098.13 | D25: 1518.7 | E25: 5867.03 | F25: 1.36342 | G25: 19853.8 | H25: 196.139 | I25: 280 | J25: 0.1840890909 | K25: 0.7029531793 | L25: 0.3103509746 | M25: 0.7029547061 | N25: 150.0078646 | O25: 0.2955112439
A26: 13594.3 | B26: 10.5586 | C26: 2039.24 | D26: 1583.74 | E26: 6224.51 | F26: 1.54531 | G26: 19818.8 | H26: 351.065 | I26: 280 | J26: 0.1919745455 | K26: 0.6832267857 | L26: 0.329260758 | M26: 0.6832242782 | N26: 150.0069882 | O26: 0.3140708246
A27: 13247.3 | B27: 10.9664 | C27: 1987.2 | D27: 1644.91 | E27: 6573.93 | F27: 1.73206 | G27: 19821.3 | H27: 351.065 | I27: 280 | J27: 0.1993890909 | K27: 0.6657871459 | L27: 0.3477441879 | M27: 0.6657888653 | N27: 150.0079261 | O27: 0.3316610523
A28: 12887.2 | B28: 11.3771 | C28: 1933.17 | D28: 1706.52 | E28: 6923.08 | F28: 1.93587 | G28: 19810.2 | H28: 385.186 | I28: 280 | J28: 0.2068563636 | K28: 0.6476891221 | L28: 0.3662133354 | M28: 0.6476867254 | N28: 150.0069837 | O28: 0.3494690635
A29: 12550 | B29: 11.7638 | C29: 1882.6 | D29: 1764.51 | E29: 7254.29 | F29: 2.14358 | G29: 19804.3 | H29: 384.979 | I29: 280 | J29: 0.2138872727 | K29: 0.630742014 | L29: 0.3837335026 | M29: 0.6307438194 | N29: 150.0079681 | O29: 0.3662989181
A30: 12210.8 | B30: 12.1529 | C30: 1831.72 | D30: 1822.87 | E30: 7588.42 | F30: 2.36848 | G30: 19799.3 | H30: 384.689 | I30: 280 | J30: 0.2209618182 | K30: 0.6136943892 | L30: 0.4014081303 | M30: 0.6136970513 | N30: 150.0081895 | O30: 0.3832686338
A31: 11881.3 | B31: 12.5314 | C31: 1782.28 | D31: 1879.66 | E31: 7913.91 | F31: 2.60374 | G31: 19795.2 | H31: 384.313 | I31: 280 | J31: 0.2278436364 | K31: 0.5971342701 | L31: 0.418625724 | M31: 0.597132739 | N31: 150.0071541 | O31: 0.3997891409
A32: 11592.4 | B32: 12.8641 | C32: 1738.94 | D32: 1929.56 | E32: 8199.97 | F32: 2.82535 | G32: 19792.3 | H32: 383.917 | I32: 280 | J32: 0.2338927273 | K32: 0.5826146392 | L32: 0.4337575709 | M32: 0.5826121626 | N32: 150.0069011 | O32: 0.4142995508
A33: 11281.3 | B33: 13.2235 | C33: 1692.28 | D33: 1983.47 | E33: 8508.66 | F33: 3.07956 | G33: 19790 | H33: 383.462 | I33: 280 | J33: 0.2404272727 | K33: 0.5669792735 | L33: 0.4500864873 | M33: 0.5669792578 | N33: 150.0075346 | O33: 0.4299483172
A34: 10989.5 | B34: 13.562 | C34: 1648.51 | D34: 2034.24 | E34: 8798.71 | F34: 3.33485 | G34: 19788.2 | H34: 382.95 | I34: 280 | J34: 0.2465818182 | K34: 0.5523138934 | L34: 0.4654293951 | M34: 0.5523146147 | N34: 150.0077347 | O34: 0.4446440583
A35: 10689.2 | B35: 13.9027 | C35: 1603.46 | D35: 2085.34 | E35: 9082.9 | F35: 3.60763 | G35: 19772.1 | H35: 382.466 | I35: 280 | J35: 0.2527763636 | K35: 0.5372213176 | L35: 0.4804623238 | M35: 0.5372211222 | N35: 150.0074842 | O35: 0.4593796309
A36: 10406.6 | B36: 14.2234 | C36: 1561.07 | D36: 2133.44 | E36: 9347.38 | F36: 3.88014 | G36: 19754 | H36: 413.703 | I36: 280 | J36: 0.2586072727 | K36: 0.5230183141 | L36: 0.4944526436 | M36: 0.5230188325 | N36: 150.0076874 | O36: 0.4731897066
A37: 10123.4 | B37: 14.546 | C37: 1518.58 | D37: 2181.84 | E37: 9610.56 | F37: 4.16993 | G37: 19733.9 | H37: 435.848 | I37: 280 | J37: 0.2644727273 | K37: 0.5087851557 | L37: 0.5083741966 | M37: 0.508783039 | N37: 150.0069147 | O37: 0.4870061559
A38: 9847.08 | B38: 14.8599 | C38: 1477.13 | D38: 2228.91 | E38: 9861.58 | F38: 4.46788 | G38: 19708.7 | H38: 381.018 | I38: 280 | J38: 0.27018 | K38: 0.4948977746 | L38: 0.5216525166 | M38: 0.4948956857 | N38: 150.0069056 | O38: 0.5003678586
A39: 9593.36 | B39: 15.1553 | C39: 1439.08 | D39: 2273.23 | E39: 10100 | F39: 4.76375 | G39: 19693.3 | H39: 380.581 | I39: 280 | J39: 0.2755509091 | K39: 0.4821462316 | L39: 0.5342643286 | M39: 0.4821474639 | N39: 150.0079221 | O39: 0.5128632189
A40: 9340.11 | B40: 15.4527 | C40: 1401.09 | D40: 2317.84 | E40: 10337.9 | F40: 5.07687 | G40: 19678 | H40: 380.115 | I40: 280 | J40: 0.2809581818 | K40: 0.4694183101 | L40: 0.5468486339 | M40: 0.4694193445 | N40: 150.0078693 | O40: 0.5253529193
A41: 9102.03 | B41: 15.7329 | C41: 1365.37 | D41: 2359.87 | E41: 10558.2 | F41: 5.38704 | G41: 19660.2 | H41: 668.63 | I41: 280 | J41: 0.2860527273 | K41: 0.4574528074 | L41: 0.558501944 | M41: 0.4574517628 | N41: 150.0071962 | O41: 0.5370333918
A42: 8872.92 | B42: 16.0151 | C42: 1331 | D42: 2402.2 | E42: 10787.9 | F42: 5.71436 | G42: 19660.9 | H42: 644.88 | I42: 280 | J42: 0.2911836364 | K42: 0.4459381219 | L42: 0.5706524901 | M42: 0.4459364834 | N42: 150.0069876 | O42: 0.5487004103
A43: 8648.24 | B43: 16.2902 | C43: 1297.3 | D43: 2443.46 | E43: 11006 | F43: 6.04882 | G43: 19654.3 | H43: 662.379 | I43: 280 | J43: 0.2961854545 | K43: 0.4346460809 | L43: 0.5821894258 | M43: 0.4346456798 | N43: 150.0074003 | O43: 0.5599809507
A44: 8450.58 | B44: 16.5324 | C44: 1267.65 | D44: 2479.78 | E44: 11194.1 | F44: 6.35701 | G44: 19644.7 | H44: 665.703 | I44: 280 | J44: 0.3005890909 | K44: 0.4247120198 | L44: 0.5921394377 | M44: 0.424711783 | N44: 150.0074551 | O44: 0.5698285745
A45: 8238.96 | B45: 16.7944 | C45: 1235.91 | D45: 2519.08 | E45: 11396 | F45: 6.70406 | G45: 19634.9 | H45: 670.054 | I45: 280 | J45: 0.3053527273 | K45: 0.4140763525 | L45: 0.6028194345 | M45: 0.4140776553 | N45: 150.0080107 | O45: 0.5803933392
A46: 8032.6 | B46: 17.0416 | C46: 1204.95 | D46: 2556.16 | E46: 11572 | F46: 7.04596 | G46: 19604.6 | H46: 826.596 | I46: 280 | J46: 0.3098472727 | K46: 0.4037050439 | L46: 0.6121293872 | M46: 0.4037048577 | N46: 150.0074696 | O46: 0.5902696306
A47: 7846.02 | B47: 17.2906 | C47: 1176.96 | D47: 2593.51 | E47: 11775.2 | F47: 7.40472 | G47: 19621.3 | H47: 796.198 | I47: 280 | J47: 0.3143745455 | K47: 0.3943278451 | L47: 0.6228781507 | M47: 0.3943271251 | N47: 150.0072648 | O47: 0.6001257822
A48: 7631.44 | B48: 17.526 | C48: 1144.77 | D48: 2628.82 | E48: 11904.2 | F48: 7.75801 | G48: 19535.6 | H48: 923.043 | I48: 280 | J48: 0.3186545455 | K48: 0.3835434131 | L48: 0.6297019228 | M48: 0.38354223 | N48: 150.007076 | O48: 0.6093580758
A49: 7462.37 | B49: 17.7626 | C49: 1119.41 | D49: 2664.31 | E49: 12100.6 | F49: 8.12707 | G49: 19563 | H49: 874.579 | I49: 280 | J49: 0.3229563636 | K49: 0.3750462377 | L49: 0.6400909836 | M49: 0.375045649 | N49: 150.0073033 | O49: 0.6185461614
A50: 7306.36 | B50: 17.9939 | C50: 1096.01 | D50: 2699.01 | E50: 12305.1 | F50: 8.50221 | G50: 19611.4 | H50: 794.395 | I50: 280 | J50: 0.3271618182 | K50: 0.3672054359 | L50: 0.6509085138 | M50: 0.3672057439 | N50: 150.0076646 | O50: 0.6274443616
A51: 7141.05 | B51: 18.2131 | C51: 1071.21 | D51: 2731.89 | E51: 12466 | F51: 8.8714 | G51: 19607 | H51: 796.585 | I51: 280 | J51: 0.3311472727 | K51: 0.3588972318 | L51: 0.6594197149 | M51: 0.3588967846 | N51: 150.0073519 | O51: 0.6357917178
A52: 6968.78 | B52: 18.4345 | C52: 1045.37 | D52: 2765.1 | E52: 12614 | F52: 9.25787 | G52: 19582.8 | H52: 831.072 | I52: 280 | J52: 0.3351727273 | K52: 0.3502392296 | L52: 0.6672485387 | M52: 0.3502393851 | N52: 150.0076053 | O52: 0.6441373492
A53: 6800.69 | B53: 18.6436 | C53: 1020.15 | D53: 2796.46 | E53: 12738.3 | F53: 9.63632 | G53: 19539 | H53: 902.844 | I53: 280 | J53: 0.3389745455 | K53: 0.3417913073 | L53: 0.6738236928 | M53: 0.3417897096 | N53: 150.0068375 | O53: 0.651942603
A54: 6663.06 | B54: 18.8545 | C54: 999.509 | D54: 2828.08 | E54: 12918.8 | F54: 10.0312 | G54: 19581.9 | H54: 787.009 | I54: 280 | J54: 0.3428090909 | K54: 0.3348742537 | L54: 0.683371684 | M54: 0.3348741762 | N54: 150.0075041 | O54: 0.6597330386
A55: 6510.02 | B55: 19.061 | C55: 976.552 | D55: 2859.07 | E55: 13056.6 | F55: 10.4318 | G55: 19566.6 | H55: 807.924 | I55: 280 | J55: 0.3465636364 | K55: 0.3271827192 | L55: 0.6906609537 | M55: 0.3271826932 | N55: 150.0075269 | O55: 0.6672894961
A56: 6363.09 | B56: 19.2433 | C56: 954.511 | D56: 2886.41 | E56: 13149.1 | F56: 10.7974 | G56: 19512.2 | H56: 935.059 | I56: 280 | J56: 0.3498781818 | K56: 0.3197982631 | L56: 0.6955539686 | M56: 0.3197981057 | N56: 150.0074649 | O56: 0.6738915519
A57: 6226.7 | B57: 19.4406 | C57: 934.052 | D57: 2916 | E57: 13290.7 | F57: 11.205 | G57: 19517.4 | H57: 909.411 | I57: 280 | J57: 0.3534654545 | K57: 0.3129435297 | L57: 0.7030442487 | M57: 0.3129435493 | N57: 150.0075481 | O57: 0.6809667271
A58: 6103.16 | B58: 19.6274 | C58: 915.519 | D58: 2944.02 | E58: 13433.1 | F58: 11.6038 | G58: 19536.3 | H58: 801.786 | I58: 280 | J58: 0.3568618182 | K58: 0.3067346159 | L58: 0.7105768468 | M58: 0.3067342775 | N58: 150.0073732 | O58: 0.6875983428
A59: 5968.64 | B59: 19.8166 | C59: 895.341 | D59: 2972.4 | E59: 13552.6 | F59: 12.0202 | G59: 19521.3 | H59: 811.361 | I59: 280 | J59: 0.3603018182 | K59: 0.2999738657 | L59: 0.716898093 | M59: 0.299973867 | N59: 150.0075394 | O59: 0.6942489309
A60: 5837.32 | B60: 19.9957 | C60: 875.641 | D60: 2999.26 | E60: 13651.5 | F60: 12.4268 | G60: 19488.8 | H60: 868.784 | I60: 280 | J60: 0.3635581818 | K60: 0.2933739421 | L60: 0.7221296517 | M60: 0.293373605 | N60: 150.0073664 | O60: 0.7004785308
A61: 5675.82 | B61: 20.1767 | C61: 851.415 | D61: 3026.41 | E61: 13676.5 | F61: 12.8501 | G61: 19352.4 | H61: 1296.05 | I61: 280 | J61: 0.3668490909 | K61: 0.2852572221 | L61: 0.7234520881 | M61: 0.2852569579 | N61: 150.0073998 | O61: 0.7067111333
A62: 5567.92 | B62: 20.3526 | C62: 835.23 | D62: 3052.8 | E62: 13813 | F62: 13.2741 | G62: 19380.9 | H62: 1190.71 | I62: 280 | J62: 0.3700472727 | K62: 0.2798343486 | L62: 0.7306725912 | M62: 0.2798343569 | N62: 150.0075432 | O62: 0.7127112645
A63: 5473.98 | B63: 20.5197 | C63: 821.138 | D63: 3077.86 | E63: 13961.3 | F63: 13.6885 | G63: 19435.3 | H63: 1017.47 | I63: 280 | J63: 0.3730854545 | K63: 0.2751130812 | L63: 0.7385172842 | M63: 0.2751129918 | N63: 150.00749 | O63: 0.7183482821
A64: 5363.75 | B64: 20.6894 | C64: 804.602 | D64: 3103.32 | E64: 14071.5 | F64: 14.1213 | G64: 19435.2 | H64: 935.403 | I64: 280 | J64: 0.3761709091 | K64: 0.2695731058 | L64: 0.7443465841 | M64: 0.2695727922 | N64: 150.0073643 | O64: 0.7240195006
A65: 5255.48 | B65: 20.8503 | C65: 788.362 | D65: 3127.45 | E65: 14162.1 | F65: 14.5435 | G65: 19417.6 | H65: 977.43 | I65: 280 | J65: 0.3790963636 | K65: 0.2641316366 | L65: 0.7491390939 | M65: 0.264131764 | N65: 150.0076111 | O65: 0.7293442334
A66: 5149.24 | B66: 21.0132 | C66: 772.425 | D66: 3151.89 | E66: 14258.5 | F66: 14.9826 | G66: 19407.8 | H66: 993.893 | I66: 280 | J66: 0.3820581818 | K66: 0.2587921919 | L66: 0.7542384088 | M66: 0.2587922526 | N66: 150.0075739 | O66: 0.7346811118
A67: 5050.13 | B67: 21.1729 | C67: 757.557 | D67: 3175.84 | E67: 14362.9 | F67: 15.4246 | G67: 19413 | H67: 947.296 | I67: 280 | J67: 0.3849618182 | K67: 0.253811089 | L67: 0.7597609035 | M67: 0.2538108975 | N67: 150.0074256 | O67: 0.7398587444
A68: 4963.71 | B68: 21.3194 | C68: 744.593 | D68: 3197.81 | E68: 14468.5 | F68: 15.8412 | G68: 19432.2 | H68: 835.777 | I68: 280 | J68: 0.3876254545 | K68: 0.2494677643 | L68: 0.7653468751 | M68: 0.249467456 | N68: 150.0073534 | O68: 0.7445627646
A69: 4864.73 | B69: 21.4732 | C69: 729.746 | D69: 3220.89 | E69: 14552.1 | F69: 16.2897 | G69: 19416.8 | H69: 872.459 | I69: 280 | J69: 0.3904218182 | K69: 0.244493195 | L69: 0.7697691026 | M69: 0.2444931367 | N69: 150.007503 | O69: 0.7494580732
A70: 4774.95 | B70: 21.6192 | C70: 716.278 | D70: 3242.78 | E70: 14639.9 | F70: 16.7263 | G70: 19414.8 | H70: 845.983 | I70: 280 | J70: =B70/$B$2 -> 0.3930763636 | K70: 0.2399810024 | L70: 0.7744134994 | M70: 0.2399808358 | N70: 150.0074346 | O70: 0.7540568173
A71: 4685.04 | B71: 21.7672 | C71: 702.791 | D71: 3264.99 | E71: 14728.8 | F71: 17.1802 | G71: 19413.8 | H71: 801.948 | I71: 280 | J71: 0.3957672727 | K71: =A71/$A$6 -> 0.2354622761 | L71: =E71/$L$3 -> 0.7791160835 | M71: =C71/$N$3 -> 0.2354621691 | N71: =C71*1000/A71 -> 150.0074706 | O71: =E71/(E71+A71) -> 0.7586752544
A72: 4591.48 | B72: 21.9078 | C72: 688.756 | D72: 3286.07 | E72: 14783.4 | F72: 17.6221 | G72: 19374.9 | H72: 1018.98 | I72: 280 | J72: 0.3983236364 | K72: 0.2307601069 | L72: 0.7820042847 | M72: 0.2307599012 | N72: 150.007405 | O72: 0.7630189193
A73: 4509.67 | B73: 22.0501 | C73: 676.484 | D73: 3307.42 | E73: 14876.5 | F73: 18.0804 | G73: 19386.1 | H73: 903.547 | I73: 280 | J73: 0.4009109091 | K73: 0.2266484732 | L73: 0.7869290381 | M73: 0.2266483065 | N73: 150.0074285 | O73: 0.7673769497
A74: 4425.85 | B74: 22.1899 | C74: 663.911 | D74: 3328.39 | E74: 14953.1 | F74: 18.5416 | G74: 19378.9 | H74: 915.604 | I74: 280 | J74: 0.4034527273 | K74: 0.2224358201 | L74: 0.7909809834 | M74: 0.2224358652 | N74: 150.0075692 | O74: 0.7716155932
A75: 4348.14 | B75: 22.3227 | C75: 652.253 | D75: 3348.31 | E75: 15028.9 | F75: 18.9903 | G75: 19377 | H75: 875.445 | I75: 280 | J75: 0.4058672727 | K75: 0.2185302455 | L75: 0.7949906107 | M75: 0.2185299843 | N75: 150.0073595 | O75: 0.7756034977
A76: 4268.33 | B76: 22.4575 | C76: 640.282 | D76: 3368.53 | E76: 15099.2 | F76: 19.4562 | G76: 19367.6 | H76: 885.166 | I76: 280 | J76: 0.4083181818 | K76: 0.2145191283 | L76: 0.798709302 | M76: 0.2145192362 | N76: 150.0076142 | O76: 0.7796141274
A77: 4192.75 | B77: 22.5856 | C77: 628.944 | D77: 3387.74 | E77: 15163.4 | F77: 19.9092 | G77: 19356.2 | H77: 1184.91 | I77: 280 | J77: 0.4106472727 | K77: 0.2107206039 | L77: 0.8021053188 | M77: 0.2107205677 | N77: 150.007513 | O77: 0.7833892587
A78: 4114.84 | B78: 22.7156 | C78: 617.257 | D78: 3407.24 | E78: 15220.6 | F78: 20.3793 | G78: 19335.4 | H78: 1126.5 | I78: 280 | J78: 0.4130109091 | K78: 0.2068049776 | L78: 0.8051310535 | M78: 0.2068049706 | N78: 150.0075337 | O78: 0.7871866376
A79: 4045.93 | B79: 22.8432 | C79: 606.919 | D79: 3426.37 | E79: 15301.3 | F79: 20.8512 | G79: 19347.3 | H79: 1183.15 | I79: 280 | J79: 0.4153309091 | K79: 0.2033416762 | L79: 0.8093998783 | M79: 0.2033413408 | N79: 150.0072913 | O79: 0.790878074
A80: 3978.6 | B80: 22.9564 | C80: 596.82 | D80: 3443.36 | E80: 15347.1 | F80: 21.2797 | G80: 19325.7 | H80: 955.726 | I80: 280 | J80: 0.4173890909 | K80: 0.199957783 | L80: 0.8118225819 | M80: 0.1999577851 | N80: 150.0075403 | O80: 0.7941290613
A81: 3912.53 | B81: 23.0798 | C81: 586.908 | D81: 3461.87 | E81: 15421.6 | F81: 21.7555 | G81: 19334.2 | H81: 1247.67 | I81: 280 | J81: 0.4196327273 | K81: 0.1966372153 | L81: 0.8157634426 | M81: 0.1966368817 | N81: 150.0072843 | O81: 0.7976360974
A82: 3847.67 | B82: 23.1972 | C82: 577.179 | D82: 3479.47 | E82: 15482 | F82: 22.2182 | G82: 19329.7 | H82: 1269.94 | I82: 280 | J82: 0.4217672727 | K82: 0.1933774601 | L82: 0.818958449 | M82: 0.1933772904 | N82: 150.0074071 | O82: 0.8009448687
A83: 3764.26 | B83: 23.3165 | C83: 564.667 | D83: 3497.37 | E83: 15468.5 | F83: 22.6981 | G83: 19232.7 | H83: 1618.93 | I83: 280 | J83: 0.4239363636 | K83: 0.189185413 | L83: 0.8182443334 | M83: 0.1891852864 | N83: 150.0074384 | O83: 0.8042787411
A84: 3721.69 | B84: 23.4294 | C84: 558.282 | D84: 3514.31 | E84: 15602.3 | F84: 23.1622 | G84: 19324 | H84: 1271.85 | I84: 280 | J84: 0.4259890909 | K84: 0.187045916 | L84: 0.8253220133 | M84: 0.1870460645 | N84: 150.0076578 | O84: 0.8074057169
A85: 3659.82 | B85: 23.5448 | C85: 549 | D85: 3531.61 | E85: 15660.7 | F85: 23.6459 | G85: 19320.6 | H85: 1316.52 | I85: 280 | J85: 0.4280872727 | K85: 0.1839364333 | L85: 0.8284112248 | M85: 0.1839362354 | N85: 150.0073774 | O85: 0.8105734214
A86: 3599.78 | B86: 23.6582 | C86: 539.993 | D86: 3548.63 | E86: 15718.7 | F86: 24.1315 | G86: 19318.5 | H86: 1304.86 | I86: 280 | J86: 0.4301490909 | K86: 0.1809189233 | L86: 0.8314792774 | M86: 0.180918542 | N86: 150.0072227 | O86: 0.8136613233
A87: 3543.11 | B87: 23.7663 | C87: 531.492 | D87: 3564.83 | E87: 15773.4 | F87: 24.6031 | G87: 19316.5 | H87: 1317.08 | I87: 280 | J87: 0.4321145455 | K87: 0.1780707838 | L87: 0.8343727684 | M87: 0.1780703782 | N87: 150.0071971 | O87: 0.8165760792
A88: 3381.61 | B88: 23.8761 | C88: 507.267 | D88: 3581.31 | E88: 15354.6 | F88: 25.0921 | G88: 18736.2 | H88: 2086.23 | I88: 280 | J88: 0.4341109091 | K88: 0.1699540639 | L88: 0.8122193129 | M88: 0.1699540662 | N88: 150.0075408 | O88: 0.8195147258
A89: 3434.96 | B89: 23.9776 | C89: 515.27 | D89: 3596.53 | E89: 15885 | F89: 25.5527 | G89: 19320 | H89: 1547.06 | I89: 280 | J89: 0.4359563636 | K89: 0.1726353457 | L89: 0.8402761247 | M89: 0.1726353808 | N89: 150.0075692 | O89: 0.8222066712
A90: 3239.58 | B90: 24.084 | C90: 485.96 | D90: 3612.5 | E90: 15273.2 | F90: 26.0452 | G90: 18512.8 | H90: 2371.61 | I90: 280 | J90: 0.4378909091 | K90: 0.1628158736 | L90: 0.8079134598 | M90: 0.162815397 | N90: 150.0070997 | O90: 0.8250084536
A91: 3192.54 | B91: 24.1845 | C91: 478.905 | D91: 3627.56 | E91: 15328.9 | F91: 26.5187 | G91: 18521.4 | H91: 2360.04 | I91: 280 | J91: 0.4397181818 | K91: 0.1604517219 | L91: 0.8108598482 | M91: 0.1604516991 | N91: 150.0075175 | O91: 0.8276300331
A92: 3150.97 | B92: 24.2739 | C92: 472.669 | D92: 3640.97 | E92: 15378.2 | F92: 26.948 | G92: 18529.1 | H92: 2349.97 | I92: 280 | J92: 0.4413436364 | K92: 0.1583624832 | L92: 0.8134676929 | M92: 0.1583623979 | N92: 150.007458 | O92: 0.829945432
A93: 3236.73 | B93: 24.3716 | C93: 485.534 | D93: 3655.63 | E93: 16081.9 | F93: 27.4247 | G93: 19318.7 | H93: 1549.03 | I93: 280 | J93: 0.44312 | K93: 0.1626726374 | L93: 0.8506916343 | M93: 0.1626726706 | N93: 150.0075694 | O93: 0.8324555106
A94: 3189.2 | B94: 24.4687 | C94: 478.403 | D94: 3670.19 | E94: 16131.3 | F94: 27.9072 | G94: 19320.5 | H94: 1547.81 | I94: 280 | J94: 0.4448854545 | K94: 0.160283859 | L94: 0.8533047687 | M94: 0.1602835097 | N94: 150.0072118 | O94: 0.8349318082
A95: 3139.97 | B95: 24.5675 | C95: 471.019 | D95: 3685.02 | E95: 16174.9 | F95: 28.4073 | G95: 19314.9 | H95: 1552.66 | I95: 280 | J95: 0.4466818182 | K95: 0.1578096416 | L95: 0.8556110979 | M95: 0.1578095841 | N95: 150.0074841 | O95: 0.8374325067
A96: 3095.07 | B96: 24.6618 | C96: 464.284 | D96: 3699.15 | E96: 16224.6 | F96: 28.8926 | G96: 19319.6 | H96: 1549.08 | I96: 280 | J96: 0.4483963636 | K96: 0.1555530426 | L96: 0.8582401016 | M96: 0.1555530986 | N96: 150.0075927 | O96: 0.8397969531
A97: 3049 | B97: 24.7577 | C97: 457.373 | D97: 3713.55 | E97: 16271.1 | F97: 29.3956 | G97: 19320.1 | H97: 1549.01 | I97: 280 | J97: 0.45014 | K97: 0.1532376415 | L97: 0.8606998334 | M97: 0.1532376463 | N97: 150.0075435 | O97: 0.8421850819
A98: 3003.9 | B98: 24.8522 | C98: 450.607 | D98: 3727.72 | E98: 16316.2 | F98: 29.9001 | G98: 19320.1 | H98: 1549.34 | I98: 280 | J98: 0.4518581818 | K98: 0.1509709909 | L98: 0.8630855087 | M98: 0.1509707746 | N98: 150.0073238 | O98: 0.8445194383
A99: 2961.71 | B99: 24.9424 | C99: 444.279 | D99: 3741.24 | E99: 16361.5 | F99: 30.3896 | G99: 19323.2 | H99: 1547.11 | I99: 280 | J99: 0.4534981818 | K99: 0.148850592 | L99: 0.8654817636 | M99: 0.1488506498 | N99: 150.007597 | O99: 0.846727847
A100: 2834.07 | B100: 25.0342 | C100: 425.131 | D100: 3755.01 | E100: 15929.6 | F100: 30.8968 | G100: 18763.7 | H100: 2062.95 | I100: 280 | J100: 0.4551672727 | K100: 0.1424356191 | L100: 0.8426353514 | M100: 0.1424353292 | N100: 150.0072334 | O100: 0.8489597184
A101: 2878.6 | B101: 25.1192 | C101: 431.811 | D101: 3767.77 | E101: 16442.4 | F101: 31.3748 | G101: 19321 | H101: 1549.6 | I101: 280 | J101: 0.4567127273 | K101: 0.1446736224 | L101: 0.869761168 | M101: 0.1446733875 | N101: 150.0072952 | O101: 0.8510118524
A102: 2837.44 | B102: 25.2085 | C102: 425.638 | D102: 3781.16 | E102: 16484.5 | F102: 31.8845 | G102: 19321.9 | H102: 1549.17 | I102: 280 | J102: 0.4583363636 | K102: 0.1426049896 | L102: 0.871988151 | M102: 0.1426051938 | N102: 150.0077535 | O102: 0.8531493214
A103: 2797.18 | B103: 25.2964 | C103: 419.597 | D103: 3794.35 | E103: 16525.6 | F103: 32.3956 | G103: 19322.8 | H103: 1548.82 | I103: 280 | J103: 0.4599345455 | K103: 0.1405815894 | L103: 0.8741622365 | M103: 0.1405812251 | N103: 150.0071501 | O103: 0.8552392565
A104: 2754.09 | B104: 25.3747 | C104: 413.133 | D104: 3806.1 | E104: 16517.1 | F104: 32.8583 | G104: 19271.2 | H104: 1592 | I104: 280 | J104: 0.4613581818 | K104: 0.138415958 | L104: 0.8737126081 | M104: 0.1384155351 | N104: 150.0070804 | O104: 0.8570877045
A105: 2722.13 | B105: 25.4601 | C105: 408.34 | D105: 3818.91 | E105: 16595.8 | F105: 33.3704 | G105: 19317.9 | H105: 1553.53 | I105: 280 | J105: 0.4629109091 | K105: 0.1368097019 | L105: 0.8778756381 | M105: 0.1368096947 | N105: 150.0075309 | O105: 0.8590879043
A106: 2587.12 | B106: 25.5418 | C106: 388.088 | D106: 3831.16 | E106: 16023.5 | F106: 33.8683 | G106: 18610.6 | H106: 2252.79 | I106: 280 | J106: 0.4643963636 | K106: 0.130024325 | L106: 0.8476024227 | M106: 0.1300244913 | N106: 150.0077306 | O106: 0.8609868989
A107: 2546.29 | B107: 25.622 | C107: 381.962 | D107: 3843.19 | E107: 16017.8 | F107: 34.3651 | G107: 18564.1 | H107: 2317.29 | I107: 280 | J107: 0.4658545455 | K107: 0.1279722775 | L107: 0.8473009072 | M107: 0.1279720444 | N107: 150.0072655 | O107: 0.8628378768
A108: 2514.28 | B108: 25.6984 | C108: 377.16 | D108: 3854.65 | E108: 16053.5 | F108: 34.8457 | G108: 18567.8 | H108: 2313.15 | I108: 280 | J108: 0.4672436364 | K108: 0.1263635084 | L108: 0.8491893465 | M108: 0.1263631886 | N108: 150.0071591 | O108: 0.8645890893
A109: 2481.6 | B109: 25.7764 | C109: 372.259 | D109: 3866.34 | E109: 16088.2 | F109: 35.3434 | G109: 18569.8 | H109: 2311.36 | I109: 280 | J109: 0.4686618182 | K109: 0.1247210663 | L109: 0.8510248883 | M109: 0.1247211641 | N109: 150.0076564 | O109: 0.8663636657
A110: 2449.36 | B110: 25.8533 | C110: 367.422 | D110: 3877.88 | E110: 16120.9 | F110: 35.8421 | G110: 18570.2 | H110: 2311.88 | I110: 280 | J110: 0.47006 | K110: 0.1231007378 | L110: 0.8527546351 | M110: 0.123100582 | N110: 150.0073489 | O110: 0.8681030853
A111: 2419.2 | B111: 25.9268 | C111: 362.898 | D111: 3888.9 | E111: 16154.7 | F111: 36.3258 | G111: 18573.9 | H111: 2307.72 | I111: 280 | J111: 0.4713963636 | K111: 0.1215849466 | L111: 0.8545425692 | M111: 0.121584867 | N111: 150.0074405 | O111: 0.8697527175
A112: 2388.42 | B112: 26.0018 | C112: 358.281 | D112: 3900.15 | E112: 16187.7 | F112: 36.8266 | G112: 18576.1 | H112: 2305.62 | I112: 280 | J112: 0.47276 | K112: 0.1200379953 | L112: 0.8562881854 | M112: 0.1200379934 | N112: 150.0075364 | O112: 0.8714252492
A113: 2358.95 | B113: 26.0734 | C113: 353.86 | D113: 3910.9 | E113: 16217.3 | F113: 37.3123 | G113: 18576.2 | H113: 2306.53 | I113: 280 | J113: 0.4740618182 | K113: 0.1185568824 | L113: 0.8578539501 | M113: 0.1185567874 | N113: 150.0074186 | O113: 0.8730125833
A114: 2329.41 | B114: 26.1466 | C114: 349.429 | D114: 3921.87 | E114: 16249.6 | F114: 37.8151 | G114: 18579.1 | H114: 2303.58 | I114: 280 | J114: 0.4753927273 | K114: 0.1170722514 | L114: 0.859562538 | M114: 0.117072231 | N114: 150.0075126 | O114: 0.8746214142
A115: 2300.47 | B115: 26.2188 | C115: 345.087 | D115: 3932.7 | E115: 16281.6 | F115: 38.3189 | G115: 18582.1 | H115: 2300.39 | I115: 280 | J115: 0.4767054545 | K115: 0.1156177754 | L115: 0.8612552567 | M115: 0.115617493 | N115: 150.0071724 | O115: 0.8761994762
A116: 2273.54 | B116: 26.2855 | C116: 341.049 | D116: 3942.71 | E116: 16308.5 | F116: 38.7911 | G116: 18582 | H116: 2301.37 | I116: 280 | J116: 0.4779181818 | K116: 0.1142643186 | L116: 0.8626781983 | M116: 0.1142646068 | N116: 150.0079172 | O116: 0.8776485251
A117: 2333.27 | B117: 26.356 | C117: 350.008 | D117: 3953.28 | E117: 16976.9 | F117: 39.2967 | G117: 19310.2 | H117: 1564.33 | I117: 280 | J117: 0.4792 | K117: 0.1172662485 | L117: 0.8980348594 | M117: 0.1172662184 | N117: 150.0075002 | O117: 0.8791688525
A118: 2306.76 | B118: 26.426 | C118: 346.031 | D118: 3963.78 | E118: 17024 | F118: 39.806 | G118: 19330.7 | H118: 1540.52 | I118: 280 | J118: 0.4804727273 | K118: 0.1159339002 | L118: 0.9005263297 | M118: 0.1159337696 | N118: 150.0073696 | O118: 0.8806689442
A119: 2276.7 | B119: 26.4975 | C119: 341.523 | D119: 3974.51 | E119: 17048.7 | F119: 40.3338 | G119: 19325.4 | H119: 1516.2 | I119: 280 | J119: 0.4817727273 | K119: 0.1144231349 | L119: 0.9018328969 | M119: 0.1144234152 | N119: 150.0079062 | O119: 0.882191313
A120: 2249.38 | B120: 26.5658 | C120: 337.424 | D120: 3984.75 | E120: 17081.1 | F120: 40.8453 | G120: 19330.5 | H120: 1536.18 | I120: 280 | J120: 0.4830145455 | K120: 0.1130500774 | L120: 0.9035467746 | M120: 0.1130500916 | N120: 150.0075576 | O120: 0.8836355848
A121: 2214.83 | B121: 26.6356 | C121: 332.242 | D121: 3995.21 | E121: 17061.4 | F121: 41.3749 | G121: 19276.2 | H121: 1594.32 | I121: 280 | J121: 0.4842836364 | K121: 0.1113136522 | L121: 0.9025046946 | M121: 0.1113139212 | N121: 150.0079013 | O121: 0.8851004579
A122: 2186.92 | B122: 26.7042 | C122: 328.055 | D122: 4005.51 | E122: 17086.7 | F122: 41.9038 | G122: 19273.6 | H122: 1596.92 | I122: 280 | J122: 0.4855309091 | K122: 0.1099109422 | L122: 0.9038430003 | M122: 0.1099111142 | N122: 150.0077735 | O122: 0.8865329917
A123: 2160.36 | B123: 26.7698 | C123: 324.07 | D123: 4015.35 | E123: 17110.2 | F123: 42.4165 | G123: 19270.6 | H123: 1599.93 | I123: 280 | J123: 0.4867236364 | K123: 0.1085760811 | L123: 0.9050860906 | M123: 0.1085759851 | N123: 150.0074062 | O123: 0.8878932423
A124: 2133.68 | B124: 26.8368 | C124: 320.069 | D124: 4025.4 | E124: 17136 | F124: 42.9469 | G124: 19269.7 | H124: 1600.59 | I124: 280 | J124: 0.4879418182 | K124: 0.1072351889 | L124: 0.906450845 | M124: 0.1072354953 | N124: 150.0079675 | O124: 0.8892726812
A125: 2107.57 | B125: 26.9008 | C125: 316.151 | D125: 4035 | E125: 17154.2 | F125: 43.461 | G125: 19261.8 | H125: 1606.14 | I125: 280 | J125: 0.4891054545 | K125: 0.1059229439 | L125: 0.9074135788 | M125: 0.1059228138 | N125: 150.0073544 | O125: 0.890582745
A126: 2089.24 | B126: 26.9662 | C126: 313.401 | D126: 4044.8 | E126: 17239.7 | F126: 43.9929 | G126: 19328.9 | H126: 1548.68 | I126: 280 | J126: 0.4902945455 | K126: 0.1050017088 | L126: 0.9119363115 | M126: 0.1050014574 | N126: 150.0071796 | O126: 0.8919112998
A127: 2063.54 | B127: 27.0309 | C127: 309.546 | D127: 4054.52 | E127: 17261.6 | F127: 44.5273 | G127: 19325.2 | H127: 1550.61 | I127: 280 | J127: 0.4914709091 | K127: 0.1037100698 | L127: 0.9130947658 | M127: 0.1037098833 | N127: 150.0072691 | O127: 0.8932199198
A128: 2021.72 | B128: 27.0887 | C128: 303.273 | D128: 4063.19 | E128: 17119.8 | F128: 45.0107 | G128: 19141.5 | H128: 1708.86 | I128: 280 | J128: 0.4925218182 | K128: 0.1016082665 | L128: 0.9055939062 | M128: 0.1016081857 | N128: 150.0074194 | O128: 0.8943803836
A129: 2001.52 | B129: 27.1514 | C129: 300.243 | D129: 4072.59 | E129: 17176 | F129: 45.5415 | G129: 19177.5 | H129: 1675.21 | I129: 280 | J129: 0.4936618182 | K129: 0.1005930483 | L129: 0.9085667434 | M129: 0.1005930185 | N129: 150.0074943 | O129: 0.8956319691
A130: 1982.14 | B130: 27.2114 | C130: 297.336 | D130: 4081.59 | E130: 17229 | F130: 46.0568 | G130: 19211.1 | H130: 1644.27 | I130: 280 | J130: 0.4947527273 | K130: 0.09961904188 | L130: 0.9113703087 | M130: 0.09961906102 | N130: 150.0075676 | O130: 0.8968234056
A131: 1969.2 | B131: 27.2729 | C131: 295.395 | D131: 4090.81 | E131: 17343.3 | F131: 46.5909 | G131: 19312.5 | H131: 1556.66 | I131: 280 | J131: 0.4958709091 | K131: 0.09896869911 | L131: 0.9174164881 | M131: 0.09896875094 | N131: 150.0076173 | O131: 0.8980349515
A132: 1947.89 | B132: 27.332 | C132: 292.198 | D132: 4099.67 | E132: 17375.1 | F132: 47.1113 | G132: 19322.9 | H132: 1546.91 | I132: 280 | J132: 0.4969454545 | K132: 0.09789769415 | L132: 0.9190986273 | M132: 0.09789763228 | N132: 150.007444 | O132: 0.8991931373
A133: 1923.2 | B133: 27.3924 | C133: 288.494 | D133: 4108.73 | E133: 17380.1 | F133: 47.6499 | G133: 19303.3 | H133: 1482.01 | I133: 280 | J133: 0.4980436364 | K133: 0.09665681603 | L133: 0.9193631146 | M133: 0.09665664901 | N133: 150.0072795 | O133: 0.9003693669
A134: 1900.97 | B134: 27.452 | C134: 285.159 | D134: 4117.68 | E134: 17402.8 | F134: 48.1887 | G134: 19303.8 | H134: 1488.33 | I134: 280 | J134: =B134/$B$2 -> 0.4991272727 | K134: 0.09553957341 | L134: 0.9205638869 | M134: 0.09553929501 | N134: 150.0071016 | O134: 0.9015233812
A135: 1880.99 | B135: 27.509 | C135: 282.163 | D135: 4126.23 | E135: 17435.3 | F135: 48.7109 | G135: 19316.3 | H135: 1531.98 | I135: 280 | J135: 0.5001636364 | K135: =A135/$A$6 -> 0.09453541202 | L135: =E135/$L$3 -> 0.9222830543 | M135: =C135/$N$3 -> 0.09453551913 | N135: =C135*1000/A135 -> 150.0077087 | O135: =E135/(E135+A135) -> 0.9026215697
A136: 1858.54 | B136: 27.5673 | C136: 278.795 | D136: 4134.98 | E136: 17448.4 | F136: 49.2514 | G136: 19307 | H136: 1556 | I136: 280 | J136: 0.5012236364 | K136: 0.09340711256 | L136: 0.922976011 | M136: 0.09340710885 | N136: 150.0075328 | O136: 0.9037372054
A137: 1839.05 | B137: 27.6231 | C137: 275.871 | D137: 4143.34 | E137: 17478.2 | F137: 49.7749 | G137: 19317.3 | H137: 1546.38 | I137: 280 | J137: 0.5022381818 | K137: 0.09242757775 | L137: 0.9245523553 | M137: 0.09242745575 | N137: 150.0073407 | O137: 0.9047975255
A138: 1816.02 | B138: 27.6801 | C138: 272.416 | D138: 4151.89 | E138: 17477.8 | F138: 50.3168 | G138: 19293.8 | H138: 1564.98 | I138: 280 | J138: 0.5032745455 | K138: 0.09127012846 | L138: 0.9245311963 | M138: 0.09126989711 | N138: 150.0071585 | O138: 0.9058755602
A139: 1795.31 | B139: 27.7364 | C139: 269.309 | D139: 4160.34 | E139: 17495.4 | F139: 50.8586 | G139: 19290.7 | H139: 1469.87 | I139: 280 | J139: 0.5042981818 | K139: 0.09022927849 | L139: 0.9254621915 | M139: 0.09022893193 | N139: 150.0069626 | O139: 0.9069339594
A140: 1776.73 | B140: 27.7867 | C140: 266.523 | D140: 4167.88 | E140: 17509.1 | F140: 51.3485 | G140: 19285.9 | H140: 1569.79 | I140: 280 | J140: 0.5052127273 | K140: 0.08929547876 | L140: 0.9261868867 | M140: 0.08929551417 | N140: 150.0075982 | O140: 0.907873812
A141: 1756.51 | B141: 27.8418 | C141: 263.489 | D141: 4176.14 | E141: 17524.1 | F141: 51.8914 | G141: 19280.6 | H141: 1573.27 | I141: 280 | J141: 0.5062145455 | K141: 0.08827925537 | L141: 0.9269803486 | M141: 0.08827900681 | N141: 150.0071164 | O141: 0.9088975919
A142: 1740.41 | B142: 27.8945 | C142: 261.074 | D142: 4184.05 | E142: 17570 | F142: 52.4171 | G142: 19310.4 | H142: 1547.45 | I142: 280 | J142: 0.5071727273 | K142: 0.08747009629 | L142: 0.9294083419 | M142: 0.0874698884 | N142: 150.0071822 | O142: 0.9098719292
A143: 1714.82 | B143: 27.9484 | C143: 257.236 | D143: 4192.14 | E143: 17523.3 | F143: 52.9618 | G143: 19238.2 | H143: 1607.65 | I143: 280 | J143: 0.5081527273 | K143: 0.08618398569 | L143: 0.9269380306 | M143: 0.08618400994 | N143: 150.007581 | O143: 0.9108634316
A144: 1698.17 | B144: 27.9999 | C144: 254.739 | D144: 4199.86 | E144: 17556.3 | F144: 53.4876 | G144: 19254.5 | H144: 1592.7 | I144: 280 | J144: 0.5090890909 | K144: 0.08534718453 | L144: 0.9286836468 | M144: 0.08534741836 | N144: 150.0079497 | O144: 0.9118038565
A145: 1682.89 | B145: 28.0525 | C145: 252.447 | D145: 4207.75 | E145: 17607.7 | F145: 54.0319 | G145: 19290.6 | H145: 1561.27 | I145: 280 | J145: 0.5100454545 | K145: 0.08457923728 | L145: 0.9314025761 | M145: 0.0845795097 | N145: 150.0080219 | O145: 0.9127610923
A146: 1666.24 | B146: 28.1047 | C146: 249.948 | D146: 4215.58 | E146: 17642.1 | F146: 54.5778 | G146: 19308.3 | H146: 1545.56 | I146: 280 | J146: 0.5109945455 | K146: 0.08374243612 | L146: 0.9332222487 | M146: 0.08374224804 | N146: 150.0072018 | O146: 0.913703612
A147: 1485.46 | B147: 28.1547 | C147: 222.831 | D147: 4223.08 | E147: 15909.2 | F147: 55.1071 | G147: 17394.6 | H147: 351.048 | I147: 280 | J147: 0.5119036364 | K147: 0.07465673562 | L147: 0.8415562432 | M147: 0.07465700415 | N147: 150.0080783 | O147: 0.9146025274
A148: 1470.22 | B148: 28.2007 | C148: 220.544 | D148: 4229.99 | E148: 15913.6 | F148: 55.6003 | G148: 17383.8 | H148: 351.048 | I148: 280 | J148: 0.51274 | K148: 0.07389079871 | L148: 0.841788992 | M148: 0.07389077069 | N148: 150.0074819 | O148: 0.9154259536
A149: 1455.71 | B149: 28.2449 | C149: 218.367 | D149: 4236.6 | E149: 15917.7 | F149: 56.0777 | G149: 17373.4 | H149: 351.048 | I149: 280 | J149: 0.5135436364 | K149: 0.07316155037 | L149: 0.8420058716 | M149: 0.07316139148 | N149: 150.007213 | O149: 0.9162104618
A150: 1440.95 | B150: 28.29 | C150: 216.153 | D150: 4243.37 | E150: 15921.9 | F150: 56.5712 | G150: 17362.9 | H150: 351.048 | I150: 280 | J150: 0.5143636364 | K150: 0.07241973745 | L150: 0.8422280409 | M150: 0.07241961584 | N150: 150.0072869 | O150: 0.9170095923
A151: 1577.02 | B151: 28.3347 | C151: 236.565 | D151: 4250.07 | E151: 17607.4 | F151: 57.0648 | G151: 19184.4 | H151: 1648.22 | I151: 280 | J151: 0.5151763636 | K151: 0.07925838811 | L151: 0.9313867069 | M151: 0.07925842539 | N151: 150.0076093 | O151: 0.9177968372
A152: 1561.69 | B152: 28.3788 | C152: 234.265 | D152: 4256.7 | E152: 17616.8 | F152: 57.5579 | G152: 19178.5 | H152: 1652.74 | I152: 280 | J152: 0.5159781818 | K152: 0.07848792795 | L152: 0.931883943 | M152: 0.07848783642 | N152: 150.0073638 | O152: 0.918570753
A153: 1554.61 | B153: 28.4272 | C153: 233.204 | D153: 4263.96 | E153: 17737.1 | F153: 58.104 | G153: 19291.7 | H153: 1514.6 | I153: 280 | J153: 0.5168581818 | K153: 0.07813209899 | L153: 0.9382475072 | M153: 0.07813236038 | N153: 150.0080406 | O153: 0.9194156454
A154: 1538.6 | B154: 28.4739 | C154: 230.801 | D154: 4270.95 | E154: 17748.1 | F154: 58.6362 | G154: 19286.7 | H154: 1557.47 | I154: 280 | J154: 0.5177072727 | K154: 0.07732746316 | L154: 0.9388293792 | M154: 0.07732726243 | N154: 150.0071494 | O154: 0.9202248181
A155: 1522.61 | B155: 28.5216 | C155: 228.403 | D155: 4278.11 | E155: 17762.7 | F155: 59.1864 | G155: 19285.3 | H155: 1503.34 | I155: 280 | J155: 0.5185745455 | K155: 0.0765238325 | L155: 0.9396016821 | M155: 0.07652383968 | N155: 150.0075528 | O155: 0.9210481968
A156: 1507.33 | B156: 28.5673 | C156: 226.111 | D156: 4284.96 | E156: 17776.1 | F156: 59.7194 | G156: 19283.4 | H156: 1500.95 | I156: 280 | J156: 0.5194054545 | K156: 0.07575588525 | L156: 0.9403105081 | M156: 0.07575593102 | N156: 150.0076294 | O156: 0.9218328897
A157: 1491.69 | B157: 28.614 | C157: 223.765 | D157: 4291.97 | E157: 17788.5 | F157: 60.2705 | G157: 19280.2 | H157: 1495.54 | I157: 280 | J157: 0.5202545455 | K157: 0.074969845 | L157: 0.9409664366 | M157: 0.07496993028 | N157: 150.0077094 | O157: 0.9226309492
A158: 1476.09 | B158: 28.6602 | C158: 221.424 | D158: 4298.91 | E158: 17798.3 | F158: 60.822 | G158: 19274.4 | H158: 1564.82 | I158: 280 | J158: 0.5210945455 | K158: 0.07418581509 | L158: 0.9414848317 | M158: 0.07418560473 | N158: 150.0071134 | O158: 0.9234170316
A159: 1462.7 | B159: 28.7045 | C159: 219.416 | D159: 4305.55 | E159: 17825.5 | F159: 61.3559 | G159: 19288.2 | H159: 1552.43 | I159: 280 | J159: 0.5219 | K159: 0.07351285608 | L159: 0.9429236425 | M159: 0.07351284706 | N159: 150.0075203 | O159: 0.9241660704
A160: 1447.92 | B160: 28.7499 | C160: 217.199 | D160: 4312.35 | E160: 17839.4 | F160: 61.9086 | G160: 19287.3 | H160: 1552.45 | I160: 280 | J160: 0.5227254545 | K160: 0.072770038 | L160: 0.9436589172 | M160: 0.0727700663 | N160: 150.0075971 | O160: 0.924928917
A161: 1433.56 | B161: 28.7933 | C161: 215.045 | D161: 4318.87 | E161: 17849.2 | F161: 62.4438 | G161: 19282.8 | H161: 1555.54 | I161: 280 | J161: 0.5235145455 | K161: 0.07204832841 | L161: 0.9441773123 | M161: 0.07204839299 | N161: 150.0076732 | O161: 0.9256558708
A162: 1420.08 | B162: 28.8378 | C162: 213.022 | D162: 4325.53 | E162: 17873.4 | F162: 62.9972 | G162: 19293.5 | H162: 1545.83 | I162: 280 | J162: 0.5243236364 | K162: 0.07137084615 | L162: 0.9454574308 | M162: 0.07137060974 | N162: 150.0070419 | O162: 0.9263958602
A163: 1400.23 | B163: 28.8818 | C163: 210.045 | D163: 4332.14 | E163: 17814 | F163: 63.5513 | G163: 19214.3 | H163: 1612.99 | I163: 280 | J163: 0.5251236364 | K163: 0.07037321834 | L163: 0.9423153217 | M163: 0.07037319959 | N163: 150.0074988 | O163: 0.9271253649
A164: 1392.51 | B164: 28.9224 | C164: 208.887 | D164: 4338.23 | E164: 17893 | F164: 64.0679 | G164: 19285.5 | H164: 1551.15 | I164: 280 | J164: 0.5258618182 | K164: 0.06998522405 | L164: 0.946494221 | M164: 0.06998522479 | N164: 150.0075403 | O164: 0.9277950129
A165: 1379.33 | B165: 28.9656 | C165: 206.91 | D165: 4344.7 | E165: 17912.9 | F165: 64.6227 | G165: 19292.2 | H165: 1544.53 | I165: 280 | J165: 0.5266472727 | K165: 0.06932281929 | L165: 0.9475468804 | M165: 0.06932285332 | N165: 150.0076124 | O165: 0.9285033405
A166: 1363.99 | B166: 29.0069 | C166: 204.609 | D166: 4350.91 | E166: 17895.8 | F166: 65.1601 | G166: 19259.8 | H166: 1571.68 | I166: 280 | J166: 0.5273981818 | K166: 0.06855185654 | L166: 0.9466423338 | M166: 0.06855192932 | N166: 150.007698 | O166: 0.929179394
A167: 1350.64 | B167: 29.0492 | C167: 202.606 | D167: 4357.25 | E167: 17907.4 | F167: 65.7149 | G167: 19258 | H167: 1572.49 | I167: 280 | J167: 0.5281672727 | K167: 0.06788090787 | L167: 0.9472559444 | M167: 0.06788084684 | N167: 150.0074039 | O167: 0.9298661754
A168: 1339.88 | B168: 29.0898 | C168: 200.992 | D168: 4363.33 | E168: 17945 | F168: 66.2522 | G168: 19284.9 | H168: 1549.05 | I168: 280 | J168: 0.5289054545 | K168: 0.06734012826 | L168: 0.9492448888 | M168: 0.06734009441 | N168: 150.0074634 | O168: 0.9305217352
A169: 1324.58 | B169: 29.1313 | C169: 198.697 | D169: 4369.56 | E169: 17925.3 | F169: 66.8085 | G169: 19249.8 | H169: 1578.23 | I169: 280 | J169: 0.52966 | K169: 0.06657117584 | L169: 0.9482028089 | M169: 0.06657118064 | N169: 150.0075496 | O169: 0.9311902204
A170: 1312.28 | B170: 29.1724 | C170: 196.852 | D170: 4375.72 | E170: 17942.9 | F170: 67.3642 | G170: 19255.2 | H170: 1573 | I170: 280 | J170: 0.5304072727 | K170: 0.06595299841 | L170: 0.9491338041 | M170: 0.06595303428 | N170: 150.0076203 | O170: 0.9318479495
A171: 1300.36 | B171: 29.2117 | C171: 195.064 | D171: 4381.63 | E171: 17957.2 | F171: 67.9026 | G171: 19257.6 | H171: 1570.34 | I171: 280 | J171: 0.5311218182 | K171: 0.06535391914 | L171: 0.9498902378 | M171: 0.06535398512 | N171: 150.0076902 | O171: 0.9324753499
A172: 1288.18 | B172: 29.252 | C172: 193.237 | D172: 4387.68 | E172: 17971.4 | F172: 68.4593 | G172: 19259.6 | H172: 1567.97 | I172: 280 | J172: 0.5318545455 | K172: 0.06474177271 | L172: 0.9506413817 | M172: 0.06474186945 | N172: 150.0077629 | O172: 0.9331148447
A173: 1276.74 | B173: 29.2907 | C173: 191.52 | D173: 4393.47 | E173: 17987.5 | F173: 68.9985 | G173: 19264.3 | H173: 1563.42 | I173: 280 | J173: 0.5325581818 | K173: 0.06416681744 | L173: 0.9514930308 | M173: 0.06416660803 | N173: 150.0070492 | O173: 0.9337248705
A174: 1264.3 | B174: 29.3303 | C174: 189.654 | D174: 4399.41 | E174: 17993.1 | F174: 69.5561 | G174: 19257.4 | H174: 1568.69 | I174: 280 | J174: 0.5332781818 | K174: 0.06354160384 | L174: 0.9517892565 | M174: 0.06354142586 | N174: 150.0071186 | O174: 0.9343473158
A175: 1252.06 | B175: 29.3695 | C175: 187.819 | D175: 4405.29 | E175: 17998.7 | F175: 70.114 | G175: 19250.8 | H175: 1573.76 | I175: 280 | J175: 0.5339909091 | K175: 0.06292644191 | L175: 0.9520854823 | M175: 0.06292662988 | N175: 150.0079868 | O175: 0.9349604899
A176: 1242.92 | B176: 29.4045 | C176: 186.447 | D176: 4410.55 | E176: 18029.1 | F176: 70.618 | G176: 19272 | H176: 1555.08 | I176: 280 | J176: 0.5346272727 | K176: 0.0624670808 | L176: 0.953693565 | M176: 0.06246695681 | N176: 150.007241 | O176: 0.9355065011
A177: 1231.6 | B177: 29.4431 | C177: 184.749 | D177: 4416.33 | E177: 18043.4 | F177: 71.1769 | G177: 19275 | H177: 1551.95 | I177: 280 | J177: 0.5353290909 | K177: 0.06189815652 | L177: 0.9544499987 | M177: 0.06189806113 | N177: 150.0073076 | O177: 0.9361037613
A178: 1221.01 | B178: 29.48 | C178: 183.16 | D178: 4421.87 | E178: 18060.3 | F178: 71.7183 | G178: 19281.3 | H178: 1546.02 | I178: 280 | J178: 0.536 | K178: 0.06136592083 | L178: 0.9553439657 | M178: 0.06136568467 | N178: 150.0069614 | O178: 0.9366739086
A179: 1207.96 | B179: 29.5179 | C179: 181.203 | D179: 4427.55 | E179: 18044.1 | F179: 72.2782 | G179: 19252.1 | H179: 1570.38 | I179: 280 | J179: 0.5366890909 | K179: 0.06071004966 | L179: 0.9544870269 | M179: 0.06071001397 | N179: 150.0074506 | O179: 0.9372555456
A180: 1197.79 | B180: 29.5541 | C180: 179.677 | D180: 4432.98 | E180: 18062.3 | F180: 72.8195 | G180: 19260.1 | H180: 1562.96 | I180: 280 | J180: 0.5373472727 | K180: 0.06019892246 | L180: 0.9554497606 | M180: 0.06019874495 | N180: 150.0070964 | O180: 0.9378097402
A181: 1187.22 | B181: 29.5912 | C181: 178.091 | D181: 4438.55 | E181: 18078.1 | F181: 73.3795 | G181: 19265.3 | H181: 1557.96 | I181: 280 | J181: 0.5380218182 | K181: 0.05966769194 | L181: 0.9562855405 | M181: 0.0596673736 | N181: 150.0067384 | O181: 0.9383752774
A182: 1177.11 | B182: 29.6281 | C182: 176.576 | D182: 4444.08 | E182: 18098.7 | F182: 73.94 | G182: 19275.8 | H182: 1548.42 | I182: 280 | J182: 0.5386927273 | K182: 0.05915958024 | L182: 0.9573752281 | M182: 0.05915979 | N182: 150.0080706 | O182: 0.9389333055
A183: 1165.94 | B183: 29.6634 | C183: 174.9 | D183: 4449.37 | E183: 18095 | F183: 74.483 | G183: 19261 | H183: 1560.55 | I183: 280 | J183: 0.5393345455 | K183: 0.05859819472 | L183: 0.9571795075 | M183: 0.05859826517 | N183: 150.0077191 | O183: 0.9394660904
A184: 1155.78 | B184: 29.6995 | C184: 173.376 | D184: 4454.79 | E184: 18110.1 | F184: 75.044 | G184: 19265.9 | H184: 1555.78 | I184: 280 | J184: 0.5399909091 | K184: 0.05808757011 | L184: 0.9579782591 | M184: 0.05808766622 | N184: 150.0077869 | O184: 0.9400089692
A185: 1145.18 | B185: 29.7342 | C185: 171.785 | D185: 4460 | E185: 18110.5 | F185: 75.5873 | G185: 19255.7 | H185: 1564.04 | I185: 280 | J185: 0.5406218182 | K185: 0.05755483184 | L185: 0.9579994181 | M185: 0.05755461968 | N185: 150.0069858 | O185: 0.9405276781
A186: 1135.57 | B186: 29.7697 | C186: 170.344 | D186: 4465.32 | E186: 18129.8 | F186: 76.1488 | G186: 19265.3 | H186: 1555.22 | I186: 280 | J186: 0.5412672727 | K186: 0.05707184931 | L186: 0.9590203391 | M186: 0.05707182894 | N186: 150.0074852 | O186: 0.9410564137
A187: 1124.95 | B187: 29.8049 | C187: 168.751 | D187: 4470.6 | E187: 18130.8 | F187: 76.7109 | G187: 19255.8 | H187: 1562.92 | I187: 280 | J187: 0.5419072727 | K187: 0.05653810586 | L187: 0.9590732365 | M187: 0.05653811233 | N187: 150.0075559 | O187: 0.9415784895
A188: 1116.6 | B188: 29.8364 | C188: 167.499 | D188: 4475.33 | E188: 18149.6 | F188: 77.2186 | G188: 19266.2 | H188: 1553.46 | I188: 280 | J188: 0.54248 | K188: 0.05611844883 | L188: 0.9600677087 | M188: 0.0561186439 | N188: 150.0080602 | O188: 0.9420435789
A189: 1095.97 | B189: 29.871 | C189: 164.404 | D189: 4480.52 | E189: 17981.8 | F189: 77.7813 | G189: 19077.8 | H189: 1717.79 | I189: 280 | J189: 0.5431090909 | K189: 0.05508161952 | L189: 0.9511915152 | M189: 0.05508169918 | N189: 150.0077557 | O189: 0.9425525101
A190: 1096.49 | B190: 29.9039 | C190: 164.481 | D190: 4485.45 | E190: 18151.6 | F190: 78.3208 | G190: 19248.1 | H190: 1568.11 | I190: 280 | J190: 0.5437072727 | K190: 0.05510775385 | L190: 0.9601735037 | M190: 0.05510749716 | N190: 150.00684 | O190: 0.9430338283
A191: 1086.71 | B191: 29.9379 | C191: 163.015 | D191: 4490.55 | E191: 18157.1 | F191: 78.8835 | G191: 19243.8 | H191: 1571.26 | I191: 280 | J191: 0.5443254545 | K191: 0.05461622741 | L191: 0.9604644397 | M191: 0.05461633046 | N191: 150.0078218 | O191: 0.9435293739
A192: 1078.45 | B192: 29.9705 | C192: 161.776 | D192: 4495.44 | E192: 18180.6 | F192: 79.4283 | G192: 19259 | H192: 1557.69 | I192: 280 | J192: 0.5449181818 | K192: 0.05420109362 | L192: 0.96170753 | M192: 0.05420121753 | N192: 150.0078817 | O192: 0.9440029493
A193: 1069.12 | B193: 30.0039 | C193: 160.376 | D193: 4500.46 | E193: 18189.5 | F193: 79.9919 | G193: 19258.6 | H193: 1557.58 | I193: 280 | J193: 0.5455254545 | K193: 0.05373218342 | L193: 0.9621783173 | M193: 0.05373216338 | N193: 150.0074828 | O193: 0.9444861574
A194: 1057.85 | B194: 30.0371 | C194: 158.686 | D194: 4505.43 | E194: 18163 | F194: 80.5558 | G194: 19220.8 | H194: 1589.85 | I194: 280 | J194: 0.5461290909 | K194: 0.05316577207 | L194: 0.9607765347 | M194: 0.05316594801 | N194: 150.0080352 | O194: 0.9449634121
A195: 1049.45 | B195: 30.0688 | C195: 157.426 | D195: 4510.19 | E195: 18177.7 | F195: 81.1007 | G195: 19227.2 | H195: 1583.83 | I195: 280 | J195: 0.5467054545 | K195: 0.05274360211 | L195: 0.9615541273 | M195: 0.05274379927 | N195: 150.0080995 | O195: 0.9454183277
A196: 1040.14 | B196: 30.1014 | C196: 156.029 | D196: 4515.07 | E196: 18180 | F196: 81.6643 | G196: 19220.2 | H196: 1589.5 | I196: 280 | J196: 0.5472981818 | K196: 0.05227569708 | L196: 0.9616757915 | M196: 0.05227575024 | N196: 150.0076913 | O196: 0.9458828083
A197: 1031.85 | B197: 30.1326 | C197: 154.785 | D197: 4519.75 | E197: 18192.7 | F197: 82.2097 | G197: 19224.5 | H197: 1585.25 | I197: 280 | J197: 0.5478654545 | K197: 0.05185905555 | L197: 0.9623475892 | M197: 0.05185896212 | N197: 150.0072685 | O197: 0.946326442
A198: 1023.04 | B198: 30.1646 | C198: 153.463 | D198: 4524.55 | E198: 18199.5 | F198: 82.7738 | G198: 19222.6 | H198: 1586.52 | I198: 280 | J198: =B198/$B$2 -> 0.5484472727 | K198: 0.05141627968 | L198: 0.9627072919 | M198: 0.05141604098 | N198: 150.0068424 | O198: 0.9467791457
A199: 1015.92 | B199: 30.1963 | C199: 152.395 | D199: 4529.3 | E199: 18234.6 | F199: 83.338 | G199: 19250.5 | H199: 1561.76 | I199: 280 | J199: 0.5490236364 | K199: =A199/$A$6 -> 0.05105844038 | L199: =E199/$L$3 -> 0.9645639927 | M199: =C199/$N$3 -> 0.05105821967 | N199: =C199*1000/A199 -> 150.0068903 | O199: =E199/(E199+A199) -> 0.9472263606
A200: 993.687 | B200: 30.2247 | C200: 149.06 | D200: 4533.57 | E200: 17979.3 | F200: 83.8486 | G200: 18972.9 | H200: 1806.66 | I200: 280 | J200: 0.54954 | K200: 0.04994104698 | L200: 0.9510592716 | M200: 0.04994086567 | N200: 150.0069942 | O200: 0.9476262225
... 490 more rows

Sheet Arps-StudyCase2
A3: F | B3: =1/0.635994545454545 -> 1.572340529 | C3: Rfmax | D3: =1/B3 -> 0.6359945455
A6: RF | B6: b=0 | C6: 0.25 | D6: 0.5 | E6: 0.75 | F6: 1
A7: 0 | B7: =1-$B$3*A7 -> 1 | C7: =(1-$B$3*(1-C$6)*$A7)^(1/(1-C$6)) -> 1 | D7: =(1-$B$3*(1-D$6)*$A7)^(1/(1-D$6)) -> 1 | E7: 1 | F7: =EXP(-$B$3*A7) -> 1
A8: 0.05 | B8: =1-$B$3*A8 -> 0.9213829736 | C8: =(1-$B$3*(1-C$6)*$A8)^(1/(1-C$6)) -> 0.922165933 | D8: 0.9229281328 | E8: 0.9236704926 | F8: =EXP(-$B$3*A8) -> 0.9243938751
A9: 0.1 | B9: 0.8427659471 | C9: 0.8459414985 | D9: 0.848946584 | E9: 0.8517963382 | F9: 0.8545040363
A10: 0.15 | B10: 0.7641489207 | C10: 0.771397736 | D10: 0.7780553536 | E10: 0.784200695 | F10: 0.7898982973
A11: 0.2 | B11: 0.6855318942 | C11: 0.6986140872 | D11: 0.7102544416 | E11: 0.7207103024 | F11: 0.730177148
A12: 0.25 | B12: 0.6069148678 | C12: 0.6276801089 | D12: 0.6455438481 | E12: 0.6611554811 | F12: 0.6749712833
A13: 0.3 | B13: 0.5282978413 | C13: 0.5586977078 | D13: 0.5839235729 | E13: 0.6053701332 | F13: 0.6239393202
A14: 0.35 | B14: 0.4496808149 | C14: 0.4917841155 | D14: 0.5253936163 | E14: 0.5531917419 | F14: 0.576765686
A15: 0.4 | B15: 0.3710637884 | C15: 0.4270759492 | D15: 0.469953978 | E15: 0.5044613718 | F15: 0.5331586675
A16: 0.45 | B16: 0.292446762 | C16: 0.3647349197 | D16: 0.4176046581 | E16: 0.4590236687 | F16: 0.4928486066
A17: 0.5 | B17: 0.2138297355 | C17: 0.3049561434 | D17: 0.3683456567 | E17: 0.4167268598 | F17: 0.4555862333
A18: 0.55 | B18: 0.1352127091 | C18: 0.247980796 | D18: 0.3221769737 | E18: 0.3774227533 | F18: =EXP(-$B$3*A18) -> 0.4211411236
A19: 0.6 | B19: 0.05659568264 | C19: 0.1941164869 | D19: 0.2790986091 | E19: 0.340966739 | F19: 0.3893002752
A20: 0.65 | B20: -0.02202134381 | C20: 0.1437726068 | D20: 0.239110563 | E20: 0.3072177879 | F20: 0.35986679
A21: 0.7 | B21: -0.1006383703 | C21: 0.09752837647 | D21: 0.2022128353 | E21: 0.276038452 | F21: 0.3326586565
A22: 0.75 | B22: -0.1792553967 | C22: 0.05628624668 | D22: 0.168405426 | E22: 0.2472948649 | F22: 0.3075076246
A23: 0.8 | B23: -0.2578724231 | C23: 0.02172923333 | D23: 0.1376883351 | E23: 0.2208567414 | F23: 0.2842581647
A24: 0.85 | B24: -0.3364894496 | D24: 0.1100615626 | E24: 0.1965973775 | F24: 0.2627665064
A25: 0.9 | B25: -0.415106476 | D25: 0.08552510859 | E25: 0.1743936505 | F25: 0.2428997491
A26: 0.95 | B26: -0.4937235025 | D26: 0.06407897298 | E26: 0.154126019 | F26: 0.2245350403
A27: 1 | B27: -0.5723405289 | D27: 0.0457231558 | E27: 0.1356785228 | F27: 0.207558816

Sheet Arps-Case3
A3: F | B3: =1/0.65 -> 1.538461538 | C3: Rf_max | D3: =1/B3 -> 0.65 | I3: Rf | J3: qmax_n
I5: 0 | J5: 1
A6: RF | B6: b=0 | C6: 0.25 | D6: 0.5 | E6: 0.75 | F6: 1 | I6: 0.0131 | J6: 0.945374149
A7: 0 | B7: =1-$B$3*A7 -> 1 | C7: =(1-$B$3*(1-C$6)*$A7)^(1/(1-C$6)) -> 1 | D7: =(1-$B$3*(1-D$6)*$A7)^(1/(1-D$6)) -> 1 | E7: 1 | F7: =EXP(-$B$3*A7) -> 1 | I7: 0.0246 | J7: 0.901005955
A8: 0.05 | B8: =1-$B$3*A8 -> 0.9230769231 | C8: =(1-$B$3*(1-C$6)*$A8)^(1/(1-C$6)) -> 0.9238262859 | D8: 0.924556213 | E8: 0.9252675469 | F8: =EXP(-$B$3*A8) -> 0.9259610786 | I8: 0.0364 | J8: 0.851335028
A9: 0.1 | B9: 0.8461538462 | C9: 0.8491921758 | D9: 0.8520710059 | E9: 0.854804191 | F9: 0.8574039192 | I9: 0.0471 | J9: 0.807197337
A10: 0.15 | B10: 0.7692307692 | C10: 0.776163977 | D10: 0.7825443787 | E10: 0.7884441688 | F10: 0.7939226578 | I10: 0.0577 | J10: 0.759005745
A11: 0.2 | B11: 0.6923076923 | C11: 0.7048156362 | D11: 0.7159763314 | E11: 0.7260249991 | F11: 0.7351414806 | I11: 0.0673 | J11: 0.716967868
A12: 0.25 | B12: 0.6153846154 | C12: 0.6352302539 | D12: 0.6523668639 | E12: 0.6673874832 | F12: 0.6807123983 | I12: 0.0766 | J12: 0.67648437
A13: 0.3 | B13: 0.5384615385 | C13: 0.5675020455 | D13: 0.5917159763 | E13: 0.6123757046 | F13: 0.6303131866 | I13: 0.0855 | J13: 0.639933228
A14: 0.35 | B14: 0.4615384615 | C14: 0.5017389311 | D14: 0.5340236686 | E14: 0.5608370297 | F14: 0.5836454781 | I14: 0.0935 | J14: 0.607422183
A15: 0.4 | B15: 0.3846153846 | C15: 0.4380660367 | D15: 0.4792899408 | E15: 0.5126221071 | F15: 0.5404329965 | I15: 0.101 | J15: 0.576693896
A16: 0.45 | B16: 0.3076923077 | C16: 0.3766305577 | D16: 0.4275147929 | E16: 0.4675848677 | F16: 0.5004199204 | I16: 0.109 | J16: 0.549564149
A17: 0.5 | B17: 0.2307692308 | C17: 0.3176087434 | D17: 0.3786982249 | E17: 0.4255825251 | F17: 0.4633693692 | I17: 0.116 | J17: 0.523127329
A18: 0.55 | B18: 0.1538461538 | C18: 0.2612163418 | D18: 0.3328402367 | E18: 0.3864755753 | F18: 0.4290620009 | I18: 0.123 | J18: 0.498940036
A19: 0.6 | B19: 0.07692307692 | C19: 0.2077250404 | D19: 0.2899408284 | E19: 0.3501277966 | F19: 0.3972947132 | I19: 0.129 | J19: 0.478548627
A20: 0.65 | B20: 0 | C20: 0.1574901312 | D20: 0.25 | E20: 0.31640625 | F20: 0.3678794412 | I20: 0.135 | J20: 0.458340862
A21: 0.7 | B21: -0.07692307692 | C21: 0.111001507 | D21: 0.2130177515 | E21: 0.2851812787 | F21: 0.3406420442 | I21: 0.141 | J21: 0.44041482
A22: 0.75 | B22: -0.1538461538 | C22: 0.06899107761 | D22: 0.1789940828 | E22: 0.2563265084 | F22: 0.3154212746 | I22: 0.146 | J22: 0.423437226
A23: 0.8 | B23: -0.2307692308 | C23: 0.03271464387 | D23: 0.1479289941 | E23: 0.2297188474 | F23: 0.2920678237 | I23: 0.152 | J23: 0.408621927
A24: 0.85 | B24: -0.3076923077 | C24: 0.005152233556 | D24: 0.1198224852 | E24: 0.2052384863 | F24: 0.2704434371 | I24: 0.157 | J24: 0.394791255
A25: 0.9 | B25: -0.3846153846 | D25: 0.09467455621 | E25: 0.1827688981 | F25: 0.2504200967 | I25: 0.162 | J25: 0.382274315
A26: 0.95 | B26: -0.4615384615 | D26: 0.0724852071 | E26: 0.1621968386 | F26: 0.2318792628 | I26: 0.167 | J26: 0.371113007
A27: 1 | B27: -0.5384615385 | D27: 0.05325443787 | E27: 0.1434123455 | F27: 0.2147111723 | I27: 0.172 | J27: 0.36042529
I28: 0.177 | J28: 0.351003165
I29: 0.181 | J29: 0.342086294
I30: 0.186 | J30: 0.333703393
I31: 0.19 | J31: 0.32649055
I32: 0.194 | J32: 0.319043763
I33: 0.198 | J33: 0.312094736
I34: 0.202 | J34: 0.305999369
I35: 0.206 | J35: 0.301430321
I36: 0.21 | J36: 0.297415836
I37: 0.214 | J37: 0.293354702
I38: 0.217 | J38: 0.289481234
I39: 0.221 | J39: 0.285564926
I40: 0.225 | J40: 0.281928766
I41: 0.228 | J41: 0.278434031
I42: 0.232 | J42: 0.275048228
I43: 0.235 | J43: 0.271824358
I44: 0.239 | J44: 0.268409511
I45: 0.242 | J45: 0.265150546
I46: 0.246 | J46: 0.261760186
I47: 0.249 | J47: 0.258590459
I48: 0.252 | J48: 0.255409977
I49: 0.256 | J49: 0.252362907
I50: 0.259 | J50: 0.249400657
I51: 0.262 | J51: 0.246416502
I52: 0.265 | J52: 0.243516248
I53: 0.268 | J53: 0.240523362
I54: 0.272 | J54: 0.237612812
I55: 0.274 | J55: 0.234960471
I56: 0.277 | J56: 0.232188699
I57: 0.28 | J57: 0.22961561
I58: 0.283 | J58: 0.227063081
I59: 0.286 | J59: 0.224586219
I60: 0.289 | J60: 0.221968693
I61: 0.292 | J61: 0.219447475
I62: 0.295 | J62: 0.217050159
I63: 0.298 | J63: 0.214658557
I64: 0.3 | J64: 0.212388973
I65: 0.303 | J65: 0.210043247
I66: 0.306 | J66: 0.20764243
I67: 0.308 | J67: 0.205534346
I68: 0.311 | J68: 0.203238337
I69: 0.314 | J69: 0.20109414
I70: 0.316 | J70: 0.198910315
I71: 0.319 | J71: 0.196738097
I72: 0.321 | J72: 0.194571644
I73: 0.324 | J73: 0.192416975
I74: 0.326 | J74: 0.190312196
I75: 0.329 | J75: 0.188190571
I76: 0.331 | J76: 0.186193937
I77: 0.334 | J77: 0.184129418
I78: 0.336 | J78: 0.182088477
I79: 0.338 | J79: 0.180292471
I80: 0.341 | J80: 0.178287439
I81: 0.343 | J81: 0.176397063
I82: 0.345 | J82: 0.174491628
I83: 0.347 | J83: 0.172657056
I84: 0.35 | J84: 0.170792967
I85: 0.352 | J85: 0.168953517
I86: 0.354 | J86: 0.167221076
I87: 0.356 | J87: 0.165508372
I88: 0.358 | J88: 0.163859921
I89: 0.36 | J89: 0.16215234
I90: 0.362 | J90: 0.160539462
I91: 0.364 | J91: 0.15913094
I92: 0.366 | J92: 0.157606642
I93: 0.368 | J93: 0.156203416
I94: 0.37 | J94: 0.154740064
I95: 0.372 | J95: 0.153414359
I96: 0.374 | J96: 0.152037556
I97: 0.376 | J97: 0.15066098
I98: 0.378 | J98: 0.149335126
I99: 0.38 | J99: 0.147937933
I100: 0.382 | J100: 0.146580224
I101: 0.384 | J101: 0.145192604
I102: 0.386 | J102: 0.143826197
I103: 0.388 | J103: 0.142572918
I104: 0.39 | J104: 0.141306073
I105: 0.391 | J105: 0.14007698
I106: 0.393 | J106: 0.138837704
I107: 0.395 | J107: 0.137656807
I108: 0.397 | J108: 0.136423463
I109: 0.399 | J109: 0.135221694
I110: 0.4 | J110: 0.134050795
I111: 0.402 | J111: 0.132869678
I112: 0.404 | J112: 0.131739202
I113: 0.405 | J113: 0.130660643
I114: 0.407 | J114: 0.129548224
I115: 0.409 | J115: 0.128540189
I116: 0.41 | J116: 0.127448901
I117: 0.412 | J117: 0.126409095
I118: 0.414 | J118: 0.125266746
I119: 0.415 | J119: 0.124312918
I120: 0.417 | J120: 0.123288079
I121: 0.418 | J121: 0.122309647
I122: 0.42 | J122: 0.12130992
I123: 0.421 | J123: 0.120328838
I124: 0.423 | J124: 0.119391139
I125: 0.425 | J125: 0.118426415
I126: 0.426 | J126: 0.11747239
I127: 0.427 | J127: 0.11660089
I128: 0.429 | J128: 0.115645967
I129: 0.43 | J129: 0.114684819
I130: 0.432 | J130: 0.113789637
I131: 0.433 | J131: 0.112890304
I132: 0.435 | J132: 0.111921943
I133: 0.436 | J133: 0.11104968
I134: 0.438 | J134: 0.110147757
I135: 0.439 | J135: 0.109217544
I136: 0.441 | J136: 0.108338416
I137: 0.442 | J137: 0.107590458
I138: 0.443 | J138: 0.106711635
I139: 0.445 | J139: 0.105929328
I140: 0.446 | J140: 0.105083389
I141: 0.447 | J141: 0.10421365
I142: 0.449 | J142: 0.103392602
I143: 0.45 | J143: 0.102603912
I144: 0.451 | J144: 0.101699888
I145: 0.453 | J145: 0.101978698
I146: 0.454 | J146: 0.100109109
I147: 0.455 | J147: 0.100473716
I148: 0.457 | J148: 0.099585889
I149: 0.458 | J149: 0.098773037
I150: 0.459 | J150: 0.097999578
I151: 0.46 | J151: 0.097356333
I152: 0.462 | J152: 0.096583489
I153: 0.463 | J153: 0.095886933
I154: 0.464 | J154: 0.095129063
I155: 0.465 | J155: 0.094463534
I156: 0.467 | J156: 0.093746239
I157: 0.468 | J157: 0.093080047
I158: 0.469 | J158: 0.092355522
I159: 0.47 | J159: 0.09172105
I160: 0.471 | J160: 0.091090524
I161: 0.472 | J161: 0.090625069
I162: 0.474 | J162: 0.089985341
I163: 0.475 | J163: 0.089434781
I164: 0.476 | J164: 0.088822648
I165: 0.477 | J165: 0.08824444
I166: 0.478 | J166: 0.087641696
I167: 0.479 | J167: 0.087056955
I168: 0.48 | J168: 0.086472626
I169: 0.482 | J169: 0.085890597
I170: 0.483 | J170: 0.085272885
I171: 0.484 | J171: 0.084664435
I172: 0.485 | J172: 0.08405304
I173: 0.486 | J173: 0.083448105
I174: 0.487 | J174: 0.082835491
I175: 0.488 | J175: 0.082296513
I176: 0.489 | J176: 0.081679055
I177: 0.49 | J177: 0.08110156
I178: 0.491 | J178: 0.080519795
I179: 0.492 | J179: 0.079968894
I180: 0.493 | J180: 0.079418557
I181: 0.494 | J181: 0.078921017
I182: 0.495 | J182: 0.078365944
I183: 0.496 | J183: 0.077863825
I184: 0.497 | J184: 0.077321106
I185: 0.498 | J185: 0.076838037
I186: 0.499 | J186: 0.076321413
I187: 0.5 | J187: 0.075845508
I188: 0.501 | J188: 0.075324068
I189: 0.502 | J189: 0.074793992
I190: 0.503 | J190: 0.074261836
I191: 0.504 | J191: 0.07379654
I192: 0.505 | J192: 0.07325802
I193: 0.506 | J193: 0.072737563
I194: 0.507 | J194: 0.072261445
I195: 0.508 | J195: 0.071770589
I196: 0.509 | J196: 0.071330018
I197: 0.51 | J197: 0.070817646
I198: 0.511 | J198: 0.070334591
I199: 0.511 | J199: 0.069910768
I200: 0.512 | J200: 0.069460292
I201: 0.513 | J201: 0.069041843
I202: 0.514 | J202: 0.068585557
I203: 0.515 | J203: 0.068184722
... 42 more rows
